Cogmind - Beta 10 X2 @@@ ROGUE MODE // 2020.07.03 @ 01:04:55 Player: Decinym Result: Destroyed by 8R-AWN with 8R-AWN's Boregun Performance ------------- Evolutions (1) 500 Regions Visited (5) 1000 Robots Destroyed (47) 235 Value Destroyed (656) 656 Prototype IDs (25) 500 Alien Tech Used (0) 0 Bonus (-267) -267 TOTAL SCORE: 2624 Bonus ------- Follower Combat Kills 108 Aligned with FarCom 300 Friendly Fire -675 Cogmind --------- Core Integrity 0/400 Matter 8/300 Energy 160/160 System Corruption 0% Temperature Cool (289) Movement Core (750) Ox14 Location -9/Exiles Parts ------- > --- POWER (1) -------- Light Nuclear Core > --- PROPULSION (3) --- (None) > --- UTILITY (3) ------ High-capacity Storage Unit > --- WEAPON (2) ------- Improved Grenade Launcher > --- INVENTORY (12) --- Rocket Launcher Heavy Flail Heavy Flail Peak State ------------ > --- POWER ------------ Light Angular Momentum Engine > --- PROPULSION ------- Aluminum Leg Aluminum Leg Compact Wheel > --- UTILITY ---------- High-capacity Storage Unit Hardened Light Armor Plating Hardened Medium Armor Plating > --- WEAPON ----------- Improved Assault Rifle Improved Grenade Launcher > --- INVENTORY -------- Light Nuclear Core Small Storage Unit High-capacity Storage Unit Hardened Light Armor Plating Hardened Light Armor Plating Guided Plasma Cannon Improved Assault Rifle Improved Assault Rifle Rocket Launcher Heavy Flail Heavy Flail [Rating: 23] Favorites ----------- Power Light Angular Momentum Engine Engine Light Angular Momentum Engine Power Core Light Nuclear Core Propulsion Aluminum Leg Leg Aluminum Leg Wheel Compact Wheel Utility Small Storage Unit Device Improved Trap Extractor Storage Small Storage Unit Processor Signal Interpreter Protection Hardened Light Armor Plating Weapon Improved Assault Rifle Energy Gun EM Pulse Gun Energy Cannon Guided Plasma Cannon Ballistic Gun Improved Assault Rifle Launcher Improved Grenade Launcher Impact Weapon Heavy Flail Build | -11 -10 -10 -9 -9 -9 ------- Run | Scr Mat Min Mat Min Exi Slots Evolved 2 | . . . 2 . . Power . | . . . . . . Propulsion 1 | . . . 1 . . Utility 1 | . . . 1 . . Weapon . | . . . . . . Parts Attached 38 | . 6 4 15 4 9 Power 3 | . . . 2 . 1 Engine 1 | . . . 1 . . Core 2 | . . . 1 . 1 Reactor . | . . . . . . Propulsion 8 | . 2 2 3 1 . Treads . | . . . . . . Leg 7 | . 2 2 3 . . Wheel 1 | . . . . 1 . Hover . | . . . . . . Flight . | . . . . . . Utility 11 | . 3 2 2 1 3 Device 1 | . . 1 . . . Storage 3 | . 1 1 1 . . Processor 1 | . 1 . . . . Hackware . | . . . . . . Protection 6 | . 1 . 1 1 3 Artifact . | . . . . . . Weapon 16 | . 1 . 8 2 5 Energy Gun 1 | . . . 1 . . Energy Cannon 1 | . . . . . 1 Ballistic Gun 7 | . 1 . 3 1 2 Ballistic Cannon . | . . . . . . Launcher 4 | . . . 1 1 2 Special Weapon . | . . . . . . Impact Weapon 3 | . . . 3 . . Slashing Weapon . | . . . . . . Piercing Weapon . | . . . . . . Special Melee Weapon . | . . . . . . Unidentified Prototypes 2 | . . . 2 . . Parts Lost 15 | . . . 3 . 12 Power 2 | . . . 1 . 1 Propulsion 5 | . . . 2 . 3 Utility 4 | . . . . . 4 Weapon 4 | . . . . . 4 Highest Loss Streak 12 | . . . 1 . 12 Average Slot Usage (%) 95 | . 96 100 94 96 90 Engine 9 | . 14 14 3 11 9 Core 1 | . . . 6 . . Leg 25 | . 28 28 30 22 16 Wheel 3 | . . . . 8 8 Storage 21 | . 18 27 22 22 18 Protection 8 | . 3 . 10 11 13 Ballistic Gun 19 | . 26 28 6 21 20 Impact Weapon 3 | . . . 14 . . Naked Turns . | . . . . . . Heaviest Build 63 | 13 17 17 56 56 63 Greatest Support 30 | 20 20 20 30 20 16 Greatest Overweight (x) 3 | . . . 2 3 3 Average Overweight (x) 1 | . . . . 2 3 Largest Inventory Capacity 14 | . 8 8 14 14 14 Average Capacity 11 | . 6 7 13 14 13 Most Carried 14 | . 8 8 14 14 14 Average Carried 10 | . 6 7 12 14 11 Final Capacity 14 | 6 8 8 14 14 12 Final Carried 14 | 6 8 8 14 14 3 Class Distribution -------------------- 71% | Mutant 28% | Scavenger-Mutant Dominant Class ---------------- Mutant | -10/Materials Mutant | -10/Mines Mutant | -9/Materials Scavenger-Mutant | -9/Mines Scavenger-Mutant | -9/Exiles Resources | -11 -10 -10 -9 -9 -9 ----------- Run | Scr Mat Min Mat Min Exi Matter Collected 1008 | 200 252 48 246 262 . Remotely . | . . . . . . Salvage Created 1138 | . 480 . 389 258 11 Parts 71 | . 33 . 19 19 . Haulers Intercepted 3 | . 1 . 2 . . Recyclers Shooed 3 | . 2 . . 1 . Parts Field Recycled . | . . . . . . Retrieved Matter . | . . . . . . Parts Self-Destructed . | . . . . . . Prevented . | . . . . . . Kills | -11 -10 -10 -9 -9 -9 ------- Run | Scr Mat Min Mat Min Exi Combat Hostiles Destroyed 31 | . 9 . 11 8 3 Melee 4 | . . . 4 . . Guns 16 | . 9 . 1 6 . AOE 7 | . . . 2 2 3 Classes Destroyed 10 | . 6 . 2 1 1 Worker 1 | . . . . 1 . Builder 2 | . . . 1 1 . Tunneler 1 | . 1 . . . . Hauler 3 | . 1 . 2 . . Recycler 3 | . 2 . . 1 . Watcher 2 | . 1 . 1 . . Swarmer 18 | . 5 . 7 6 . Grunt 9 | . 4 . 3 2 . Duelist 1 | . . . 1 . . Assembled 7 | . . . . . 7 Best Kill Streak 5 | . 3 . 5 4 3 Combat Bots Only 5 | . 3 . 5 3 3 Max Kills in Single Turn 4 | . 2 . 1 2 4 Gunslinging . | . . . . . . Exploded 2 | . . . 1 2 2 Melee 1 | . . . 1 . . Uniques/NPCs Destroyed . | . . . . . . Combat | -11 -10 -10 -9 -9 -9 -------- Run | Scr Mat Min Mat Min Exi Damage Taken 2487 | . 268 42 795 143 1239 Core 475 | . 61 . 179 42 193 Absorbed by Shields . | . . . . . . Core Remaining (%) 87 | 100 . 75 . . . Volleys Fired 132 | . 36 . 23 26 47 Largest 2 | . 2 . 2 2 2 Hottest 120 | . 60 . 46 46 120 Shots Fired 243 | . 72 . 43 50 78 Gun 229 | . 72 . 41 48 68 Cannon 6 | . . . . . 6 Launcher 8 | . . . 2 2 4 Special . | . . . . . . Kinetic 227 | . 70 . 41 48 68 Thermal 6 | . . . . . 6 Explosive 8 | . . . 2 2 4 Electromagnetic 2 | . 2 . . . . Robot Hit Streak 16 | . 16 . 4 12 14 Robot Miss Streak 5 | . 5 . 5 3 2 Penetration Max . | . . . . . . Secondary Targets 3 | . . . . 3 . Max Gunslinging Chain 1 | . . . . 1 . Shots Hit Robots 178 | . 45 . 46 34 53 Core Hits 64 | . 21 . 11 15 17 Critical Hits 2 | . 1 . . . 1 Critical Kills . | . . . . . . Critical Parts Destroyed 1 | . 1 . . . . Melee Attacks 39 | . . . 39 . . Impact 39 | . . . 39 . . Slashing . | . . . . . . Piercing . | . . . . . . Sneak Attacks 2 | . . . 2 . . Combat Hostiles . | . . . . . . Follow-up Attacks 2 | . . . 2 . . Damage Inflicted 3856 | . 590 . 1253 633 1380 Guns 2160 | . 590 . 369 451 750 Cannons 207 | . . . . . 207 Explosions 757 | . . . 152 182 423 Melee 732 | . . . 732 . . Ramming . | . . . . . . Kinetic 2120 | . 550 . 369 451 750 Thermal 207 | . . . . . 207 Explosive 757 | . . . 152 182 423 Electromagnetic 40 | . 40 . . . . Impact 732 | . . . 732 . . Slashing . | . . . . . . Piercing . | . . . . . . Highest Corruption . | . . . . . . Average Corruption . | . . . . . . Corruption Purged . | . . . . . . Overload Shots . | . . . . . . Overflow Damage 141 | . . . 128 13 . Projectiles . | . . . . . . Explosions 27 | . . . 14 13 . Melee 114 | . . . 114 . . Knockbacks 6 | . . . 6 . . Impact 6 | . . . 6 . . Kinetic . | . . . . . . Secondary . | . . . . . . Self-Inflicted Damage 23 | . . . . . 23 Shots 1 | . . . . . 1 Rammed . | . . . . . . Targets Rammed . | . . . . . . Kicked . | . . . . . . Crushed . | . . . . . . Highest Temperature 560 | . 2 . 380 8 560 Average Temperature 158 | . 2 . 165 5 165 Received Heat Transfer 141 | . 60 . 81 . . Effects 17 | . . . . . 17 Shutdowns 3 | . . . . . 3 Energy Bleed 1 | . . . . . 1 Interference 2 | . . . . . 2 Matter Decay 3 | . . . . . 3 Short Circuit 1 | . . . . . 1 Damage (minor) 2 | . . . . . 2 Damage (major) 4 | . . . . . 4 Damage (core) 1 | . . . . . 1 Siege Activations . | . . . . . . Robots Corrupted . | . . . . . . Combat Hostiles . | . . . . . . Parts Fried 4 | . 1 . 3 . . Impact Corruptions 8 | . . . 8 . . Robots Melted . | . . . . . . Combat Hostiles . | . . . . . . Parts Melted . | . . . . . . Heat Transferred 120 | . . . . . 120 Parts Sabotaged . | . . . . . . Parts Stolen . | . . . . . . Parts Stripped . | . . . . . . Power Chain Reactions . | . . . . . . Missiles Intercepted . | . . . . . . Alert | -11 -10 -10 -9 -9 -9 ------- Run | Scr Mat Min Mat Min Exi Peak Influence 299 | . 248 45 299 225 . Average Influence 105 | . 108 39 128 135 . Maximum Alert Level 1 | . 1 . 1 1 . Low Security (%) 84 | . 89 100 81 70 . Level 1 15 | . 10 . 18 29 . Level 2 . | . . . . . . Level 3 . | . . . . . . Level 4 . | . . . . . . Level 5 . | . . . . . . High Security . | . . . . . . Max Security . | . . . . . . Squads Dispatched 4 | . 4 . . . . Investigation 2 | . 2 . . . . Extermination . | . . . . . . Reinforcement 2 | . 2 . . . . Assault . | . . . . . . Garrison . | . . . . . . Intercept . | . . . . . . Construction Impeded . | . . . . . . Haulers Reinforced . | . . . . . . Stealth | -11 -10 -10 -9 -9 -9 --------- Run | Scr Mat Min Mat Min Exi Distress Signals 5 | . 3 . 2 . . Communications Jammed . | . . . . . . Distress Signals . | . . . . . . Times Spotted 57 | . 18 . 27 8 4 Peak Tracking Total 5 | . 5 . 5 3 5 Tactical Retreats 2 | . 1 . 1 . . Traps | -11 -10 -10 -9 -9 -9 ------- Run | Scr Mat Min Mat Min Exi Traps Triggered 3 | . 2 1 . . . Indirectly . | . . . . . . Trap Hack Attempts . | . . . . . . Triggered . | . . . . . . Disarmed . | . . . . . . Reprogrammed . | . . . . . . Reused 1 | . . . . . 1 Traps Extracted . | . . . . . . Installed 3 | . . . . . 3 Triggered . | . . . . . . Machines | -11 -10 -10 -9 -9 -9 ---------- Run | Scr Mat Min Mat Min Exi Machines Disabled 3 | . . . 1 . 2 Max in Single Turn 1 | . . . 1 . 1 Machines Sabotaged . | . . . . . . Garrisons Compromised . | . . . . . . Overloaded Fab Kills . | . . . . . . Fab Network Shutdowns . | . . . . . . Hacking | -11 -10 -10 -9 -9 -9 --------- Run | Scr Mat Min Mat Min Exi Machines Accessed 6 | . 3 1 1 . 1 Terminals 4 | . 3 . 1 . . Fabricators . | . . . . . . Repair Stations . | . . . . . . Recycling Units . | . . . . . . Scanalyzers . | . . . . . . Garrison Access . | . . . . . . Total Hacks 13 | . 10 1 1 . 1 Successful 6 | . 3 1 1 . 1 Failed 7 | . 7 . . . . Catastrophic 1 | . 1 . . . . Database Lockouts . | . . . . . . Manual 8 | . 7 . . . 1 Terminals 11 | . 10 . 1 . . Fabricators . | . . . . . . Repair Stations . | . . . . . . Recycling Units . | . . . . . . Scanalyzers . | . . . . . . Garrison Access . | . . . . . . Terminal Hacks 6 | . 3 1 1 . 1 Open Door 1 | . . 1 . . . Branch Access Points 2 | . 1 . 1 . . Unreport Threat 1 | . 1 . . . . Registered Prototypes 1 | . 1 . . . . EX-Prototype ID Bank 1 | . . . . . 1 Fabricator Hacks . | . . . . . . Repair Station Hacks . | . . . . . . Recycling Unit Hacks . | . . . . . . Scanalyzer . | . . . . . . Garrison Access Hacks . | . . . . . . Unauthorized Hacks . | . . . . . . Terminals . | . . . . . . Fabricators . | . . . . . . Repair Stations . | . . . . . . Recycling Units . | . . . . . . Scanalyzers . | . . . . . . Garrison Access . | . . . . . . Data Cores Recovered . | . . . . . . Used . | . . . . . . Hacking Detections 3 | . 3 . . . . Full Trace Events 1 | . 1 . . . . Feedback Events . | . . . . . . Feedback Blocked . | . . . . . . Robot Schematics Acquired . | . . . . . . Robots Built . | . . . . . . Matter . | . . . . . . Time . | . . . . . . Total Robot Build Rating . | . . . . . . Part Schematics Acquired . | . . . . . . Parts Built . | . . . . . . Matter . | . . . . . . Time . | . . . . . . Total Part Build Rating . | . . . . . . Parts Repaired . | . . . . . . Time . | . . . . . . Parts Recycled . | . . . . . . Recycled Matter . | . . . . . . Retrieved Matter . | . . . . . . Retrieved Components . | . . . . . . Parts Scanalyzed . | . . . . . . Part Schematics Acquired . | . . . . . . Parts Damaged . | . . . . . . Bothacking | -11 -10 -10 -9 -9 -9 ------------ Run | Scr Mat Min Mat Min Exi Used RIF Installer . | . . . . . . Robots Hacked . | . . . . . . Non-combat . | . . . . . . Combat . | . . . . . . Robot Hacks Applied . | . . . . . . Relay Couplers Released . | . . . . . . Robots Rewired . | . . . . . . Allies Hacked . | . . . . . . Hacks Repelled . | . . . . . . Allies | -11 -10 -10 -9 -9 -9 -------- Run | Scr Mat Min Mat Min Exi Total Allies 2 | . . 2 . . . Largest Group 2 | . . 2 2 . . Highest-Rated Group 46 | . . 46 46 . . Highest-Rated Ally 31 | . . 31 31 . . Total Orders . | . . . . . . Ally Attacks 15 | . . . 15 . . Total Damage 294 | . . . 294 . . Kills 4 | . . . 4 . . Allies Corrupted . | . . . . . . Allies Melted . | . . . . . . Intel | -11 -10 -10 -9 -9 -9 ------- Run | Scr Mat Min Mat Min Exi Robot Analysis Total . | . . . . . . Derelict Logs Recovered 1 | . . . . 1 . Drone Launches . | . . . . . . Drone Recoveries . | . . . . . . Exploration | -11 -10 -10 -9 -9 -9 ------------- Run | Scr Mat Min Mat Min Exi Turns Passed 2603 | . 449 459 689 483 523 Spaces Moved 1339 | 1 247 203 320 285 283 Core . | . . . . . . Treads . | . . . . . . Legs 833 | 1 247 203 320 62 . Wheels 506 | . . . . 223 283 Hover . | . . . . . . Flight . | . . . . . . Fastest Speed 120 | 120 120 120 120 130 130 Average Speed 133 | 120 120 120 148 140 130 Slowest Speed 180 | 120 120 120 180 180 130 Overloaded Moves . | . . . . . . Propulsion Burnouts . | . . . . . . Robots Hopped . | . . . . . . Cave-ins Triggered . | . . . . . . Exploration Rate (%) 41 | 2 46 62 22 72 42 Regions Visited 5 Branch Regions 3 Pre-discovered Areas 1 | . . 1 . . . Known Exits Taken 2 | . 1 . 1 . . Unknown Exits Taken 3 | 1 . 1 . 1 . Scrap Searched 1 | . . 1 . . . Spaces Dug 9 | . . . 9 . . Terrain Destroyed 38 | . . . 17 8 13 Melee . | . . . . . . Projectile . | . . . . . . AOE 38 | . . . 17 8 13 Actions | -11 -10 -10 -9 -9 -9 --------- Run | Scr Mat Min Mat Min Exi Total 1849 | . 329 422 420 316 362 Wait 245 | . 24 197 11 . 13 Move 1334 | . 246 202 319 284 283 Hop . | . . . . . . Pick Up 27 | . 8 8 9 1 1 Fast Attach 15 | . 3 2 9 1 . Attach 8 | . . . 2 . 6 Detach . | . . . . . . Swap 15 | . 3 2 4 3 3 Drop 37 | . 9 11 10 1 6 Fire 132 | . 36 . 23 26 47 Melee 33 | . . . 33 . . Ram . | . . . . . . Kick . | . . . . . . Crush . | . . . . . . Escape Stasis . | . . . . . . Rewire . | . . . . . . Trap 3 | . . . . . 3 Miscellaneous . | . . . . . . Route ------- -11/Scrapyard -10/Materials (discovered 2 exits: *Mat / *Min) -10/Mines -9/Materials -9/Mines (discovered 3 exits: *Mat x2 / *Exi) -9/Exiles (discovered 1 exit: [*Min]) History --------- Turn | Location | Event 1 | -11/Scrapyard | Discovered new exit (range 0) 1 | -11/Scrapyard | Entered Materials 38 | -10/Materials | Identified exit to Mines 228 | -10/Materials | Discovered new exit (range 16) 301 | -10/Materials | Build established: Mutant 450 | -10/Materials | Entered Mines 455 | -10/Mines | Learned location of Storage (-7) 557 | -10/Mines | Met a Derelict who couldn't figure out how to use a Trap Extractor 620 | -10/Mines | Found a hidden stash of uninstalled traps 644 | -10/Mines | Assembled infested the area 649 | -10/Mines | Assisted by a Guerilla fighting off Assembled 888 | -10/Mines | Discovered new exit (range 12) 909 | -10/Mines | Entered Materials 909 | -9/Materials | Accompanied by 2 allies 909 | -9/Materials | Evolved 2 slots: Propulsion x1, Utility x1 914 | -9/Materials | Led the pair of lost Derelicts to an unsafe place 919 | -9/Materials | Identified exit to Mines 1598 | -9/Materials | Entered Mines 1618 | -9/Mines | Discovered new exit (range 10) 1783 | -9/Mines | Identified exit to Materials 1839 | -9/Mines | Core integrity fell below 50% 2024 | -9/Mines | Build established: Scavenger-Mutant 2075 | -9/Mines | Deemed a non-threat by the Exiles lab entrance 2076 | -9/Mines | Discovered new exit (range 5) 2081 | -9/Mines | Entered Exiles 2101 | -9/Exiles | Discovered new exit (range 15) 2113 | -9/Exiles | Met 8R-AWN 2136 | -9/Exiles | Met EX-HEX 2171 | -9/Exiles | Met EX-BIN 2192 | -9/Exiles | Aligned with FarCom system 2193 | -9/Exiles | Given EX-Vault access code 2224 | -9/Exiles | Opened EX-Vault 2254 | -9/Exiles | Warned to stay clear of 0b10 Research branches 2282 | -9/Exiles | Found Gui. Plasma Cannon 2459 | -9/Exiles | Attacked by the Exiles 2584 | -9/Exiles | Core integrity fell below 20% 2604 | -9/Exiles | Destroyed by 8R-AWN with 8R-AWN's Boregun Last Messages --------------- 02592_ Penetrated by HV Slug. 02592_ Critical hit. 02592_ Hrd. Light Armor Plating destroyed. 02592_ HV Slug penetrates Wall. 02592_ Penetrated by HV Slug. 02592_ Critical hit. 02592_ Imp. Assault Rifle destroyed. 02593_ Imp. Grenade Launcher permanently disabled. 02593_ Overheating: Short circuit. 02594_ Overheating: Matter decay (-1). 02596_ Power failure, Lgt. Nuclear Core shutdown. 02596_ The unstable cave ceiling collapses. 02596_ Penetrated by HV Slug. 02596_ Critical hit. 02596_ Penetrated by HV Slug. 02600_ Critical hit. 02600_ Hrd. Light Armor Plating destroyed. 02600_ Penetrated by HV Slug. 02601_ Overheating: Hcp. Storage Unit damaged (-105). 02604_ Penetrated by HV Slug. Map ----- +----------------------------------------------------+ | ?## ###"" """"#??????????????????????????????? | | ?#" """"#??????????????????????????????? | | ?#" """#??????????????????????????????? | | ?#" """#??????????????????????????????? | | ?#" """#??????????????????????????????? | | ?#" """#??????????????????????????????? | | ?#" """#??????????????????????????????? | | ?## """"??????????????????????????????? | | ??# """#??????????????????????????????? | | ??#" "X" """???????????????????????????????? | | ??#" """ ???????????????????????????????? | | ??#" """""""""#??????????????????????????????? | | ?##" ###########??????????????????????????????? | | ##"" #????????????????????????????????????????? | | #"" #????????????????????????????????????????? | | """ ##???? ??????????????????????????????????? | | "" ##?? ;;#########????????????????????????? | | " ###;; """""""##???????????????????????? | | " """"##??????????????????????? | | " #??????????????????????? | | """#??????????????????????? | | a"#???????????#####??????? | | "##?????????##" #??????? | | ###???????#" #??????? | | """""" !! " ###????##"^^ ##?????? | | #####""" @ #??### ###???? | | ????#####" #?# ##### | | ????????##""" g #### #""" | | ?????????#"""" ### | | ?????????#"" ^ ## | | ?????????"""" #### | | ????????" ""#?#"""""#### | | ??????" #"""##?#######??# | | ??????? ######???????????? | | ?????? ##????????????????? | | ?????? " ##?????????????????? | | ??????? "" """ #??????????????????? | | ?????????"" " " ""#" ##??????????????????? | | ??????????##""" """## #???????????????????? | | ???????????###"""???# ## ##???????????????????? | | ?????????????##?????#####?###????????????????????? | | ?????????????????????????????????????????????????? | | ?????????????????????????????????????????????????? | | ?????????????????????????????????????????????????? | | ?????????????????????????????????????????????????? | | ?????????????????????????????????????????????????? | | ?????????????????????????????????????????????????? | | ?????????????????????????????????????????????????? | | ?????????????????????????????????????????????????? | | ?????????????????????????????????????????????????? | +----------------------------------------------------+ Best States ------------- Heat Dissipation 28 Energy Generation 18 Energy Capacity 250 Matter Stores 300 Matter Capacity 300 Sight Range 16 Terrain Scan Density 10 Armor Coverage 375 Utility Shielding 33 Evasion (%) 40 Item Schematics ----------------- None Robot Schematics ------------------ None Fabricated ------------ Nothing Alien Tech Used ----------------- None Achievements -------------- None Challenges ------------ None Game ------ Seed OpticalTerrabombDerivative Manual? 0 Play Time 00:20:53 Cumulative 321.6 hours Start 2020.07.03 @ 00:47:42 End 2020.07.03 @ 01:04:55 Sessions 1 Manual Loads 0 Difficulty Rogue Special Mode None Game No. 356 Rogue 356 Adventurer 0 Explorer 0 Win Type - Total 29 Types 17/3/2/1/2/1/3 Lore% 93 Gallery% 88 Achievement% 78 Wizard Run 0 Options --------- ASCII 0 Keyboard 0 Movement Arrows Keybinds 0 Fullscreen 2 Font 18/SmallcapsGlow Map View 76x50 Tactical HUD 1 Map Filters NONE Filters NONE Steam 1 RUN: eecfd3d6-da08-4461-a5aa-b5ef6237c50b